fUST/lending_fUST_20250622
["ID","MTS","AMOUNT","RATE_DAILY","PERIOD"]
[366925059,1750578633013,-689.97,0.0002344,3]
[366925060,1750578633023,-500.75281512,0.0002344,2]
[366925061,1750578633033,-481.35058316,0.0002344,2]
[366925062,1750578633043,-500.0,0.00023453,2]
[366925063,1750578633053,-500.0,0.00023472,2]
[366925064,1750578633063,-1000.0,0.00023514,2]
[366925065,1750578633073,-1000.0,0.00023521,2]
[366925066,1750578633083,-900.0,0.00023521,2]
[366925067,1750578633093,-500.0,0.00023543,2]
[366925068,1750578633107,-192.38470539,0.00023587,2]
[366925069,1750578633117,-500.0,0.00023612,2]
[366925070,1750578633128,-500.0,0.00023624,2]
[366925071,1750578633138,-1000.0,0.00023654,2]
[366925072,1750578633149,-1000.0,0.00023666,2]
[366925073,1750578633159,-160.0,0.0002367,2]
[366925074,1750578633168,-1000.0,0.00023708,2]
[366925075,1750578633178,-900.0,0.00023722,2]
[366925076,1750578633189,-1000.0,0.00023729,2]
[366925077,1750578633200,-1000.0,0.00023733,2]
[366925078,1750578633210,-800.0,0.00023776,2]
[366925079,1750578633219,-500.0,0.0002379,2]
[366925080,1750578633229,-500.0,0.00023799,2]
[366925081,1750578633239,-500.0,0.00023808,2]
[366925082,1750578633249,-1000.0,0.00023839,2]
[366925083,1750578633259,-207.0072808,0.0002384,2]
[366925084,1750578633269,-365.8215413,0.00023842,2]
[366925085,1750578633280,-365.8215413,0.00023842,2]
[366925086,1750578633290,-365.8215413,0.00023842,2]
[366925087,1750578633299,-229.24845804,0.00023842,2]
[366925102,1750578640671,-500.0,0.00023323,2]
[366925104,1750578640681,-500.0,0.00023323,2]
[366925105,1750578640690,-0.303815,0.00023323,2]
[366925109,1750578644876,-834.45311294,0.00023031,2]
[366925110,1750578645056,-11717.07510305,0.00023031,2]
[366925112,1750578645066,-499.696185,0.00023323,2]
[366925113,1750578645076,-500.0,0.00023323,2]
[366925115,1750578645087,-500.0,0.00023323,2]
[366925116,1750578645096,-500.0,0.00023323,2]
[366925117,1750578645110,-60.51849936,0.00023842,2]
[366925118,1750578645120,-900.0,0.0002385,2]
[366925119,1750578645129,-900.0,0.00023852,2]
[366925120,1750578645139,-151.0,0.000239,9]
[366925121,1750578645150,-590.69773868,0.000239,10]
[366925122,1750578645159,-192.38470539,0.00023943,2]
[366925123,1750578645169,-616.85,0.00023948,10]
[366925124,1750578645178,-168.0,0.00023958,2]
[366925125,1750578645188,-433.006542,0.00023958,7]
[366925126,1750578645198,-433.006542,0.00023958,7]
[366925127,1750578645208,-188.56701,0.00023958,7]
[366925128,1750578645217,-188.56701,0.00023958,7]
[366925129,1750578645227,-1000.0,0.00023964,2]
[366925130,1750578645235,-590.6977386,0.00023969,10]
[366925131,1750578645245,-286.775269,0.00023969,7]
[366925132,1750578645254,-151.0,0.00023969,7]
[366925133,1750578645264,-500.0,0.00023973,2]
[366925134,1750578645274,-506.62802217,0.00023973,2]
[366925135,1750578645283,-500.0,0.00023973,2]
[366925136,1750578645292,-500.0,0.00023973,2]
[366925137,1750578645301,-421.47338474,0.00023973,2]
[366925138,1750578645311,-416.06737292,0.00023973,2]
[366925139,1750578645320,-500.0,0.00023973,2]
[366925140,1750578645329,-500.0,0.00023973,2]
[366925141,1750578645338,-500.0,0.00023973,2]
[366925142,1750578645347,-502.48789432,0.00023973,2]
[366925143,1750578645356,-151.0,0.00023973,7]
[366925144,1750578645365,-1000.0,0.00023978,2]
[366925145,1750578645375,-151.0,0.00023985,7]
[366925146,1750578645384,-151.0,0.00023985,7]
[366925147,1750578645393,-151.0,0.00023985,7]
[366925148,1750578645402,-151.0,0.00023985,7]
[366925149,1750578645411,-151.0,0.00023985,7]
[366925150,1750578645420,-70215.902341,0.0002399,2]
[366925151,1750578645429,-154.700153,0.0002399,7]
[366925152,1750578645438,-151.0,0.00024,7]
[366925153,1750578645447,-151.0,0.00024,7]
[366925154,1750578645457,-151.0,0.00024,7]
[366925155,1750578645466,-382.329445,0.00024,7]
[366925156,1750578645476,-382.329445,0.00024,7]
[366925157,1750578645486,-442.45991337,0.00024,2]
[366925158,1750578645495,-500.0,0.00024,2]
[366925159,1750578645504,-500.0,0.00024,2]
[366925160,1750578645514,-500.0,0.00024,2]
[366925161,1750578645523,-500.0,0.00024,2]
[366925162,1750578645533,-524.02598587,0.00024,3]
[366925163,1750578645543,-524.02598587,0.00024,3]
[366925164,1750578645552,-158.65,0.00024,2]
[366925165,1750578645561,-900.0,0.00024001,2]
[366925166,1750578645570,-1112.625219,0.00024009,4]
[366925168,1750578645579,-151.0,0.00024009,7]
[366925170,1750578645588,-151.0,0.00024009,7]
[366925171,1750578645598,-491.369145,0.00024009,7]
[366925172,1750578645607,-491.369145,0.00024009,7]
[366925173,1750578645617,-151.0,0.00024009,7]
[366925174,1750578645626,-151.0,0.00024009,7]
[366925175,1750578645635,-500.0,0.00024017,2]
[366925176,1750578645644,-500.0,0.00024024,2]
[366925177,1750578645654,-900.0,0.00024032,2]
[366925178,1750578645663,-590.6977386,0.00024038,10]
[366925179,1750578645673,-1000.0,0.00024056,2]
[366925180,1750578645682,-500.0,0.00024068,2]
[366925181,1750578645692,-1000.0,0.00024077,2]
[366925182,1750578645701,-151.0,0.00024092,7]
[366925183,1750578645711,-151.0,0.00024092,7]
[366925184,1750578645721,-155.075669,0.00024092,7]
[366925185,1750578645730,-151.0,0.00024092,7]
[366925186,1750578645740,-174.670816,0.00024092,7]
[366925187,1750578645750,-174.670816,0.00024092,7]
[366925188,1750578645760,-151.0,0.000241,8]
[366925189,1750578645770,-590.6977386,0.00024107,10]
[366925190,1750578645779,-900.0,0.00024111,2]
[366925191,1750578645790,-900.0,0.00024158,2]
[366925192,1750578645799,-590.6977386,0.00024176,10]
[366925193,1750578645809,-500.0,0.00024204,2]
[366925194,1750578645819,-900.0,0.00024214,2]
[366925195,1750578645830,-151.0,0.00024222,7]
[366925196,1750578645839,-151.0,0.00024222,7]
[366925197,1750578645848,-151.0,0.00024222,7]
[366925198,1750578645858,-151.0,0.00024222,7]
[366925199,1750578645868,-241.44626,0.00024222,7]
[366925200,1750578645879,-431.92077027,0.00024229,2]
[366925201,1750578645888,-900.0,0.00024232,2]
[366925202,1750578645898,-462.03112124,0.00024234,2]
[366925203,1750578645907,-168.0,0.00024242,2]
[366925204,1750578645916,-800.0,0.00024243,2]
[366925205,1750578645926,-590.6977386,0.00024245,10]
[366925206,1750578645935,-151.0,0.00024245,7]
[366925207,1750578645944,-900.0,0.00024287,2]
[366925208,1750578645954,-298.08192315,0.00024297,2]
[366925209,1750578645963,-192.38470539,0.00024298,2]
[366925210,1750578645973,-151.0,0.000243,5]
[366925211,1750578645982,-800.0,0.000243,2]
[366925212,1750578645992,-1000.0,0.00024305,2]
[366925213,1750578646002,-900.0,0.00024305,2]
[366925214,1750578646011,-590.6977386,0.00024314,10]
[366925215,1750578646022,-500.0,0.00024329,2]
[366925216,1750578646032,-800.0,0.0002433,2]
[366925217,1750578646043,-433.006542,0.00024349,7]
[366925218,1750578646053,-433.006542,0.00024349,7]
[366925219,1750578646064,-153.147779,0.00024349,7]
[366925220,1750578646074,-151.0,0.00024349,7]
[366925221,1750578646084,-188.56701,0.00024349,7]
[366925222,1750578646099,-188.56701,0.00024349,7]
[366925223,1750578646111,-491.369145,0.00024349,7]
[366925224,1750578646123,-491.369145,0.00024349,7]
[366925225,1750578646133,-151.0,0.00024349,7]
[366925226,1750578646143,-151.0,0.00024349,7]
[366925227,1750578646152,-151.0,0.00024351,7]
[366925228,1750578646163,-800.0,0.00024351,2]
[366925229,1750578646172,-900.0,0.00024352,2]
[366925230,1750578646184,-381.0,0.00024354,2]
[366925231,1750578646194,-900.0,0.00024357,2]
[366925232,1750578646205,-229.99,0.0002436,3]
[366925233,1750578646214,-459.97,0.0002437,3]
[366925234,1750578646224,-151.0,0.00024372,7]
[366925235,1750578646233,-151.0,0.00024372,7]
[366925236,1750578646242,-151.0,0.00024372,7]
[366925237,1750578646252,-174.670816,0.00024372,7]
[366925238,1750578646261,-174.670816,0.00024372,7]
[366925239,1750578646270,-800.0,0.0002438,2]
[366925241,1750578646280,-1011.76631576,0.0002438,2]
[366925242,1750578646289,-590.6977386,0.00024383,11]
[366925243,1750578646298,-151.0,0.000244,7]
[366925245,1750578646308,-160.0,0.000244,3]
[366925246,1750578646317,-151.0,0.000244,7]
[366925247,1750578646326,-151.0,0.000244,7]
[366925248,1750578646335,-153.837992,0.000244,7]
[366925249,1750578646349,-382.329445,0.000244,7]
[366925250,1750578646359,-382.329445,0.000244,7]
[366925251,1750578646368,-382.329445,0.000244,7]
[366925253,1750578646378,-382.329445,0.000244,7]
[366925254,1750578646388,-151.0,0.000244,7]
[366925255,1750578646398,-151.0,0.000244,7]
[366925256,1750578646409,-151.0,0.000244,7]
[366925257,1750578646418,-151.0,0.000244,7]
[366925258,1750578646431,-846.39664074,0.000244,7]
[366925259,1750578646440,-900.0,0.00024402,2]
[366925260,1750578646450,-500.0,0.0002441,2]
[366925261,1750578646459,-500.0,0.00024415,2]
[366925262,1750578646469,-381.0,0.0002442,2]
[366925263,1750578646478,-15556.08973976,0.00024426,2]
[366925264,1750578646490,-240.027876,0.0002443,7]
[366925265,1750578646499,-900.0,0.00024432,2]
[366925266,1750578646508,-200.0,0.0002444,10]
[366925267,1750578646518,-381.0,0.00024442,2]
[366925268,1750578646528,-500.0,0.00024445,2]
[366925269,1750578646537,-590.6977386,0.00024452,11]
[366925270,1750578646547,-151.0,0.00024452,7]
[366925271,1750578646556,-162.316734,0.00024452,7]
[366925272,1750578646566,-176.597992,0.00024452,7]
[366925273,1750578646576,-176.597992,0.00024452,7]
[366925274,1750578646586,-151.0,0.00024452,7]
[366925275,1750578646597,-425.01221603,0.0002446,7]
[366925276,1750578646607,-800.0,0.00024471,2]
[366925277,1750578646616,-151.0,0.00024471,7]
[366925278,1750578646626,-491.369145,0.00024471,7]
[366925279,1750578646635,-491.369145,0.00024471,7]
[366925280,1750578646644,-151.0,0.00024471,7]
[366925281,1750578646654,-151.0,0.00024471,7]
[366925282,1750578646664,-500.0,0.00024473,2]
[366925283,1750578646674,-503.42590928,0.00024473,2]
[366925284,1750578646683,-500.0,0.00024473,2]
[366925286,1750578646693,-500.0,0.00024473,2]
[366925287,1750578646703,-500.0,0.00024473,2]
[366925288,1750578646712,-501.35526205,0.00024473,2]
[366925289,1750578646722,-500.0,0.00024473,2]
[366925290,1750578646732,-505.35053195,0.00024473,2]
[366925291,1750578646742,-500.0,0.00024473,2]
[366925292,1750578646752,-500.0,0.00024473,2]
[366925293,1750578646762,-507.76290015,0.00024473,2]
[366925294,1750578646772,-500.0,0.00024473,2]
[366925295,1750578646781,-500.0,0.00024473,2]
[366925296,1750578646886,-500.0,0.00024473,2]
[366925297,1750578646897,-505.8146919,0.00024473,2]
[366925298,1750578646906,-500.0,0.00024473,2]
[366925299,1750578646916,-500.0,0.00024473,2]
[366925300,1750578646926,-500.0,0.00024473,2]
[366925301,1750578646935,-500.0,0.00024473,2]
[366925302,1750578646945,-600.0,0.00024473,2]
[366925303,1750578646954,-500.0,0.00024473,2]
[366925304,1750578646963,-500.0,0.00024473,2]
[366925305,1750578646973,-500.0,0.00024473,2]
[366925306,1750578646983,-500.0,0.00024473,2]
[366925307,1750578646992,-505.10885425,0.00024473,2]
[366925308,1750578647001,-500.0,0.00024473,2]
[366925309,1750578647011,-500.0,0.00024473,2]
[366925310,1750578647020,-501.26277296,0.00024473,2]
[366925311,1750578647030,-500.0,0.00024473,2]
[366925312,1750578647039,-503.81207811,0.00024473,2]
[366925313,1750578647049,-501.92758877,0.00024473,2]
[366925314,1750578647058,-500.0,0.00024473,2]
[366925315,1750578647068,-500.0,0.00024473,2]
[366925316,1750578647077,-500.0,0.00024473,2]
[366925317,1750578647087,-156.385891,0.00024473,7]
[366925318,1750578647098,-382.329445,0.00024473,7]
[366925319,1750578647111,-382.329445,0.00024473,7]
[366925320,1750578647121,-151.0,0.00024473,7]
[366925321,1750578647130,-151.0,0.00024473,7]
[366925322,1750578647139,-198.133045,0.00024473,7]
[366925323,1750578647149,-352.16511,0.00024473,7]
[366925324,1750578647159,-352.16511,0.00024473,7]
[366925325,1750578647168,-151.0,0.00024473,7]
[366925326,1750578647179,-151.0,0.00024473,7]
[366925327,1750578647189,-433.006542,0.00024473,7]
[366925328,1750578647198,-433.006542,0.00024473,7]
[366925329,1750578647207,-151.0,0.00024473,7]
[366925330,1750578647217,-151.0,0.00024473,7]
[366925331,1750578647227,-158.903454,0.00024473,7]
[366925332,1750578647236,-188.56701,0.00024473,7]
[366925333,1750578647245,-188.56701,0.00024473,7]
[366925334,1750578647255,-174.670816,0.00024473,7]
[366925335,1750578647264,-174.670816,0.00024473,7]
[366925336,1750578647274,-151.0,0.00024473,7]
[366925337,1750578647283,-151.0,0.00024473,7]
[366925338,1750578647292,-151.0,0.00024473,7]
[366925339,1750578647302,-151.0,0.00024473,7]
[366925340,1750578647311,-5564.74577761,0.0002448,2]
[366925341,1750578647320,-3661.33508196,0.0002448,2]
[366925342,1750578647329,-27296.39670141,0.0002448,2]
[366925343,1750578647406,-2500.281,0.0002448,2]
[366925344,1750578647565,-69.83747272,0.000228,2]
[366925345,1750578647577,-1255.79750396,0.000228,2]
[366925346,1750578647588,-43476.40347381,0.0002448,2]
[366925347,1750578647599,-151.0,0.0002448,7]
[366925348,1750578647609,-151.0,0.0002448,7]
[366925349,1750578647619,-151.0,0.0002448,7]
[366925350,1750578647628,-301.604095,0.0002448,7]
[366925351,1750578647638,-151.0,0.0002448,7]
[366925352,1750578647648,-151.0,0.0002448,7]
[366925353,1750578647657,-151.0,0.0002448,7]
[366925354,1750578647667,-151.0,0.0002448,7]
[366925355,1750578647677,-151.0,0.0002448,7]
[366925356,1750578647686,-352.16511,0.0002448,7]
[366925357,1750578647695,-352.16511,0.0002448,7]
[366925358,1750578647705,-151.0,0.0002448,7]
[366925359,1750578647714,-151.0,0.0002448,7]
[366925360,1750578647724,-433.006542,0.0002448,7]
[366925361,1750578647733,-433.006542,0.0002448,7]
[366925362,1750578647743,-176.597992,0.0002448,7]
[366925363,1750578647752,-176.597992,0.0002448,7]
[366925364,1750578647761,-151.0,0.0002448,7]
[366925365,1750578647770,-151.0,0.0002448,7]
[366925366,1750578647780,-151.0,0.0002448,7]
[366925367,1750578647789,-151.0,0.0002448,7]
[366925368,1750578647799,-151.0,0.0002448,7]
[366925369,1750578647809,-151.0,0.0002448,7]
[366925370,1750578647818,-158.666451,0.0002448,7]
[366925371,1750578647827,-188.56701,0.0002448,7]
[366925372,1750578647836,-188.56701,0.0002448,7]
[366925373,1750578647847,-174.670816,0.0002448,7]
[366925374,1750578647856,-174.670816,0.0002448,7]
[366925375,1750578647865,-174.670816,0.0002448,7]
[366925376,1750578647874,-174.670816,0.0002448,7]
[366925377,1750578647883,-151.0,0.0002448,7]
[366925378,1750578647892,-184.696276,0.0002448,7]
[366925379,1750578647901,-151.0,0.0002448,7]
[366925380,1750578647910,-151.0,0.0002448,7]
[366925381,1750578647919,-491.369145,0.0002448,7]
[366925382,1750578647929,-491.369145,0.0002448,7]
[366925383,1750578647938,-491.369145,0.0002448,7]
[366925384,1750578647947,-491.369145,0.0002448,7]
[366925385,1750578647956,-151.0,0.0002448,7]
[366925386,1750578647966,-151.0,0.0002448,7]
[366925387,1750578647975,-151.0,0.0002448,7]
[366925388,1750578647985,-151.0,0.0002448,7]
[366925389,1750578647995,-151.0,0.0002448,7]
[366925390,1750578648004,-151.0,0.0002448,7]
[366925391,1750578648014,-151.0,0.0002448,7]
[366925392,1750578648023,-151.0,0.0002448,7]
[366925393,1750578648032,-151.0,0.0002449,7]
[366925394,1750578648042,-836.56272071,0.0002449,7]
[366925395,1750578648051,-747.24,0.00024492,5]
[366925396,1750578648061,-182.032354,0.00024493,7]
[366925397,1750578648071,-182.032354,0.00024493,7]
[366925398,1750578648079,-151.0,0.00024493,7]
[366925399,1750578648088,-151.0,0.00024493,7]
[366925400,1750578648098,-160.0,0.00024493,7]
[366925401,1750578648110,-500.0,0.00024494,2]
[366925402,1750578648120,-151.0,0.00024499,7]
[366925403,1750578648130,-151.0,0.00024499,7]
[366925404,1750578648140,-382.329445,0.00024499,7]
[366925405,1750578648150,-382.329445,0.00024499,7]
[366925406,1750578648159,-23265.16407693,0.000245,2]
[366925407,1750578648172,-830.6395,0.000245,2]
[366925411,1750578884301,165.174967,0.00013699,2]
[366925412,1750579045578,1000.0,0.00025,120]
[366925413,1750579048036,1000.0,0.00025,120]
[366925414,1750579049086,1000.0,0.00025,120]
[366925415,1750579049860,1000.0,0.00025,120]
[366925416,1750579088066,1000.0,0.00025,120]
[366925417,1750579089057,1000.0,0.00025,120]
[366925418,1750579544142,-889.87054129,0.0002119,2]
[366925419,1750579551078,-181.29113799,0.0002119,2]
[366925420,1750579551099,-167.33377128,0.00021304,2]
[366925421,1750579551121,-165.174967,0.00021404,2]
[366925422,1750579551142,-167.33377125,0.00021824,2]
[366925423,1750579551163,-231.54427977,0.00022064,2]
[366925424,1750579644087,-1735.21263175,0.00021844,2]
[366925425,1750579644125,-141.58442764,0.00021844,2]
[366925426,1750579644146,-39.56660561,0.00022064,2]
[366925427,1750579644167,-214.47136525,0.00022456,2]
[366925428,1750579644199,-167.33377125,0.00022861,2]
[366925429,1750579644220,-167.33377125,0.00022862,2]
[366925430,1750579644242,-209.18052928,0.00022863,2]
[366925431,1750579644265,-8.98976437,0.00022917,2]
[366925432,1750579653152,-1029.8239736,0.00022917,2]
[366925433,1750579653189,-3881.92892554,0.00022917,2]
[366925436,1750579705468,545.76,0.000235,120]
[366925437,1750579748090,-160.808104,0.00021963,2]
[366925438,1750579748112,-150.0,0.000229,2]
[366925439,1750579748138,-605.12296526,0.00022917,2]
[366925440,1750579770127,-362.13437123,0.00022917,2]
[366925441,1750579831323,227.285091,0.00022077,2]
[366925630,1750579838477,-300.0,0.0002296,2]
[366925631,1750579838487,-300.0,0.0002296,2]
[366925632,1750579838496,-300.0,0.0002296,2]
[366925633,1750579838507,-1200.0,0.0002296,2]
[366925634,1750579838518,-300.0,0.00022961,2]
[366925635,1750579838529,-500.0,0.00022961,2]
[366925636,1750579838538,-500.0,0.00022961,2]
[366925637,1750579838548,-290.0,0.00022961,2]
[366925638,1750579838557,-500.0,0.00022961,2]
[366925639,1750579838567,-500.0,0.00022961,2]
[366925640,1750579838577,-500.0,0.00022961,2]
[366925641,1750579838586,-500.0,0.00022961,2]
[366925642,1750579838596,-500.0,0.00022961,2]
[366925643,1750579838608,-500.0,0.00022961,2]
[366925644,1750579838617,-500.0,0.00022961,2]
[366925645,1750579838627,-500.0,0.00022961,2]
[366925646,1750579838636,-500.0,0.00022961,2]
[366925647,1750579838645,-500.0,0.00022961,2]
[366925648,1750579838656,-500.0,0.00022961,2]
[366925649,1750579838665,-500.0,0.00022961,2]
[366925650,1750579838674,-6866.28184534,0.00022961,2]
[366925651,1750579838687,-17092.08344605,0.00022961,2]
[366925652,1750579838696,-222.453,0.00022964,2]
[366925653,1750579838707,-177.1805861,0.00022964,2]
[366925654,1750579838716,-358.66101364,0.00022973,2]
[366925655,1750579838725,-500.0,0.00023116,2]
[366925656,1750579838735,-160.0,0.00023119,2]
[366925657,1750579838744,-160.0,0.00023119,2]
[366925658,1750579838754,-500.0,0.00023129,2]
[366925659,1750579838763,-3723.54967323,0.00023132,2]
[366925660,1750579838773,-500.0,0.00023179,2]
[366925661,1750579838782,-500.0,0.0002319,2]
[366925662,1750579838792,-500.0,0.0002325,2]
[366925663,1750579838802,-500.0,0.00023263,2]
[366925664,1750579838812,-308.85387441,0.00023263,2]
[366925665,1750579838821,-500.0,0.00023263,2]
[366925666,1750579838831,-631.75730156,0.00023263,2]
[366925667,1750579838840,-500.0,0.00023263,2]
[366925668,1750579838850,-500.0,0.00023263,2]
[366925669,1750579838859,-500.0,0.00023263,2]
[366925670,1750579838868,-500.0,0.00023263,2]
[366925671,1750579838877,-500.0,0.00023263,2]
[366925672,1750579838887,-500.0,0.00023263,2]
[366925673,1750579838897,-500.0,0.00023263,2]
[366925674,1750579838906,-500.0,0.00023263,2]
[366925675,1750579838916,-500.0,0.00023263,2]
[366925676,1750579838926,-500.0,0.00023267,2]
[366925677,1750579838936,-1664.94097883,0.00023268,2]
[366925678,1750579838946,-151.0,0.00023268,2]
[366925679,1750579838956,-25000.0,0.00023268,2]
[366925680,1750579838966,-14368.79370466,0.00023268,2]
[366925681,1750579838976,-207.4,0.00023268,2]
[366925682,1750579838987,-500.0,0.00023291,2]
[366925683,1750579838996,-160.0,0.00023295,2]
[366925684,1750579839006,-309.5761506,0.000233,2]
[366925685,1750579839016,-193.1494393,0.000233,2]
[366925686,1750579839026,-588.6147588,0.000233,2]
[366925687,1750579839036,-158.8714084,0.000233,2]
[366925688,1750579839045,-160.0,0.00023319,2]
[366925689,1750579839055,-836.56272071,0.00023319,2]
[366925690,1750579839065,-846.39664074,0.00023319,2]
[366925691,1750579839074,-213.59462818,0.00023319,2]
[366925692,1750579839084,-230.14598372,0.00023319,2]
[366925693,1750579839093,-160.0,0.00023319,2]
[366925694,1750579839102,-160.0,0.00023319,2]
[366925695,1750579839111,-500.0,0.00023349,2]
[366925696,1750579839121,-500.0,0.00023354,2]
[366925697,1750579839131,-168.0,0.00023374,2]
[366925698,1750579839140,-500.0,0.00023379,2]
[366925699,1750579839150,-168.0,0.00023399,2]
[366925700,1750579839160,-153.0,0.000234,2]
[366925701,1750579839169,-168.0,0.00023427,2]
[366925702,1750579839179,-500.0,0.00023463,2]
[366925703,1750579839189,-500.0,0.00023474,2]
[366925704,1750579839199,-500.0,0.00023607,2]
[366925705,1750579839210,-500.0,0.00023674,2]
[366925706,1750579839219,-500.0,0.00023691,2]
[366925707,1750579839229,-500.0,0.00023697,2]
[366925708,1750579839238,-500.0,0.0002382,2]
[366925709,1750579839248,-500.0,0.00023876,2]
[366925710,1750579839257,-500.0,0.00023878,2]
[366925711,1750579839267,-519.13763386,0.000239,10]
[366925712,1750579839277,-500.0,0.0002392,2]
[366925713,1750579839286,-519.13763386,0.00023969,10]
[366925714,1750579839295,-163.829119,0.00023973,7]
[366925715,1750579839305,-163.829119,0.00023973,7]
[366925716,1750579839314,-500.0,0.00023973,2]
[366925717,1750579839324,-153.0,0.00023979,2]
[366925718,1750579839333,-306.0,0.00023979,2]
[366925719,1750579839343,-151.0,0.00023985,7]
[366925720,1750579839352,-151.0,0.00023985,7]
[366925721,1750579839362,-151.0,0.0002399,7]
[366925722,1750579839370,-151.273954,0.0002399,7]
[366925723,1750579839380,-163.829119,0.0002399,7]
[366925724,1750579839389,-151.119738,0.0002399,7]
[366925725,1750579839399,-163.829119,0.0002399,7]
[366925726,1750579839409,-193.100126,0.0002399,7]
[366925727,1750579839418,-193.100126,0.0002399,7]
[366925728,1750579839428,-10000.0,0.00024,24]
[366925729,1750579839437,-524.02598587,0.00024,3]
[366925730,1750579839447,-524.02598587,0.00024,3]
[366925731,1750579839457,-1263.675795,0.00024009,4]
[366925732,1750579839466,-183.78,0.0002401,3]
[366925733,1750579839476,-551.38,0.0002401,3]
[366925734,1750579839485,-735.13,0.0002402,3]
[366925735,1750579839494,-367.56,0.0002402,3]
[366925736,1750579839504,-519.13763386,0.00024038,10]
[366925737,1750579839514,-519.13763386,0.00024107,10]
[366925738,1750579839523,-206.0,0.0002414,2]
[366925739,1750579839533,-519.13763386,0.00024176,10]
[366925740,1750579839543,-500.0,0.00024222,2]
[366925741,1750579839553,-163.829119,0.00024229,7]
[366925742,1750579839563,-163.829119,0.00024229,7]
[366925743,1750579839573,-151.0,0.00024232,7]
[366925744,1750579839582,-151.0,0.00024232,7]
[366925745,1750579839592,-151.0,0.00024232,7]
[366925746,1750579839603,-193.100126,0.00024232,7]
[366925747,1750579839616,-193.100126,0.00024232,7]
[366925748,1750579839625,-519.13763386,0.00024245,10]
[366925749,1750579839634,-500.0,0.00024275,2]
[366925750,1750579839644,-519.13763386,0.00024314,10]
[366925751,1750579839654,-160.0,0.00024329,2]
[366925752,1750579839663,-982.6520054,0.00024372,2]
[366925753,1750579839672,-519.13763386,0.00024383,11]
[366925754,1750579839683,-151.0,0.000244,7]
[366925755,1750579839692,-151.0,0.000244,7]
[366925756,1750579839703,-160.0,0.000244,3]
[366925757,1750579839714,-163.829119,0.000244,7]
[366925758,1750579839724,-163.829119,0.000244,7]
[366925759,1750579839733,-213.59462818,0.000244,3]
[366925760,1750579839743,-846.39664074,0.000244,3]
[366925761,1750579839753,-976.68966188,0.000244,2]
[366925762,1750579839762,-151.0,0.000244,7]
[366925763,1750579839772,-11630.26408338,0.000244,3]
[366925764,1750579839782,-151.0,0.00024402,7]
[366925765,1750579839792,-193.100126,0.00024402,7]
[366925766,1750579839802,-193.100126,0.00024402,7]
[366925767,1750579839812,-151.0,0.00024403,7]
[366925768,1750579839821,-500.0,0.00024412,2]
[366925769,1750579839831,-248.78848359,0.00024435,2]
[366925770,1750579839840,-500.0,0.00024435,2]
[366925771,1750579839850,-500.0,0.00024448,2]
[366925772,1750579839860,-519.13763386,0.00024452,11]
[366925773,1750579839870,-3288.45723988,0.00024458,2]
[366925774,1750579839880,-151.0,0.0002446,7]
[366925775,1750579839890,-193.100126,0.0002446,7]
[366925776,1750579839900,-193.100126,0.0002446,7]
[366925777,1750579839909,-500.0,0.00024462,2]